[Event "*** Titled Tuesday Blitz"]
[Site "Chess.com"]
[Date "2019.06.04"]
[Round "6"]
[White "BlackBoarder"]
[Black "Jbd735"]
[Result "0-1"]
[WhiteElo "2525"]
[BlackElo "2438"]
[TimeControl "180+2"]
[EndTime "14:20:06 PDT"]
[Termination "Jbd735 won by checkmate"]

1. e4 {[%clk 0:03:01.9]} 1... e5 {[%clk 0:03:00.7]} 2. Nf3 {[%clk 0:03:02.8]}
2... Nc6 {[%clk 0:03:02]} 3. d4 {[%clk 0:03:04.1]} 3... exd4 {[%clk 0:03:02.6]}
4. Bc4 {[%clk 0:03:05.7]} 4... Nf6 {[%clk 0:03:01.7]} 5. O-O {[%clk 0:03:06.6]}
5... Nxe4 {[%clk 0:02:52.4]} 6. Re1 {[%clk 0:03:07.6]} 6... d5 {[%clk
0:02:52.9]} 7. Bxd5 {[%clk 0:03:08.9]} 7... Qxd5 {[%clk 0:02:54.6]} 8. Nc3
{[%clk 0:03:10.6]} 8... Qd8 {[%clk 0:02:41.1]} 9. Nxe4 {[%clk 0:03:11.8]} 9...
Be7 {[%clk 0:02:40.4]} 10. Bg5 {[%clk 0:03:11.6]} 10... O-O {[%clk 0:02:33.3]}
11. Bxe7 {[%clk 0:03:12.4]} 11... Qxe7 {[%clk 0:02:27.8]} 12. Nxd4 {[%clk
0:03:12.3]} 12... Bd7 {[%clk 0:01:57]} 13. Qh5 {[%clk 0:03:06.8]} 13... Rae8
{[%clk 0:01:15.7]} 14. Nf3 {[%clk 0:03:07.3]} 14... Qb4 {[%clk 0:00:58.6]} 15.
Neg5 {[%clk 0:02:23.3]} 15... h6 {[%clk 0:00:48.7]} 16. Rxe8 {[%clk 0:02:24.4]}
16... Bxe8 {[%clk 0:00:49.4]} 17. Nh3 {[%clk 0:02:25.6]} 17... Qxb2 {[%clk
0:00:48.6]} 18. Re1 {[%clk 0:02:25.8]} 18... Qxc2 {[%clk 0:00:46.9]} 19. Nf4
{[%clk 0:02:26.2]} 19... Qxa2 {[%clk 0:00:43.8]} 20. Nd5 {[%clk 0:02:25.2]}
20... f5 {[%clk 0:00:36.4]} 21. Nf6+ {[%clk 0:01:54.4]} 21... Rxf6 {[%clk
0:00:32.8]} 22. Qxe8+ {[%clk 0:01:45.7]} 22... Rf8 {[%clk 0:00:30.8]} 23. Qe3
{[%clk 0:01:30]} 23... Qf7 {[%clk 0:00:30]} 24. h4 {[%clk 0:01:29.5]} 24... Rd8
{[%clk 0:00:28.1]} 25. Rb1 {[%clk 0:01:28.7]} 25... b6 {[%clk 0:00:25.9]} 26.
Rc1 {[%clk 0:01:28.5]} 26... Rd6 {[%clk 0:00:25.4]} 27. Qa3 {[%clk 0:01:26.4]}
27... Qd5 {[%clk 0:00:22.4]} 28. Qa4 {[%clk 0:01:25.7]} 28... a5 {[%clk
0:00:22.1]} 29. Re1 {[%clk 0:01:20]} 29... b5 {[%clk 0:00:21.3]} 30. Qf4 {[%clk
0:01:19.7]} 30... a4 {[%clk 0:00:20.1]} 31. Re8+ {[%clk 0:01:20.5]} 31... Kf7
{[%clk 0:00:18.9]} 32. Rc8 {[%clk 0:01:17]} 32... Rd7 {[%clk 0:00:15.6]} 33. Qe3
{[%clk 0:01:03.8]} 33... Qe4 {[%clk 0:00:08.2]} 34. Qc5 {[%clk 0:01:04.9]} 34...
Rd1+ {[%clk 0:00:05.5]} 35. Kh2 {[%clk 0:01:06.1]} 35... Qf4+ {[%clk 0:00:06.3]}
36. g3 {[%clk 0:01:03.5]} 36... Qxf3 {[%clk 0:00:07.2]} 37. Qf8+ {[%clk
0:00:53.9]} 37... Kg6 {[%clk 0:00:07.9]} 38. Qe8+ {[%clk 0:00:53.4]} 38... Kf6
{[%clk 0:00:06.6]} 39. Qf8+ {[%clk 0:00:48.1]} 39... Ke6 {[%clk 0:00:05.5]} 40.
Qg8+ {[%clk 0:00:26.4]} 40... Kd6 {[%clk 0:00:05.3]} 41. Qf8+ {[%clk 0:00:25.9]}
41... Kd5 {[%clk 0:00:05.4]} 42. Qf7+ {[%clk 0:00:13.2]} 42... Kc5 {[%clk
0:00:05.9]} 43. Qf8+ {[%clk 0:00:14.6]} 43... Kb6 {[%clk 0:00:06.2]} 44. Rb8+
{[%clk 0:00:15.8]} 44... Nxb8 {[%clk 0:00:06.9]} 45. Qxb8+ {[%clk 0:00:17.7]}
45... Qb7 {[%clk 0:00:07.2]} 46. Qxb7+ {[%clk 0:00:15.8]} 46... Kxb7 {[%clk
0:00:09.1]} 47. g4 {[%clk 0:00:15.6]} 47... a3 {[%clk 0:00:11]} 48. gxf5 {[%clk
0:00:16.5]} 48... a2 {[%clk 0:00:12.2]} 49. f6 {[%clk 0:00:17.7]} 49... gxf6
{[%clk 0:00:14.1]} 50. Kg3 {[%clk 0:00:17.8]} 50... a1=Q {[%clk 0:00:16]} 51. h5
{[%clk 0:00:18.6]} 51... Qe5+ {[%clk 0:00:16.6]} 52. Kg4 {[%clk 0:00:19]} 52...
Qg5+ {[%clk 0:00:17.4]} 53. Kf3 {[%clk 0:00:20.3]} 53... Qxh5+ {[%clk
0:00:18.4]} 54. Ke4 {[%clk 0:00:21.6]} 54... Qe5+ {[%clk 0:00:19.1]} 55. Kf3
{[%clk 0:00:22.9]} 55... Rd3+ {[%clk 0:00:20.4]} 56. Kg4 {[%clk 0:00:23.8]}
56... Qg5# {[%clk 0:00:20.6]} 0-1

[Event "*** Titled Tuesday Blitz"]
[Site "Chess.com"]
[Date "2019.06.04"]
[Round "6"]
[White "Andrjywa"]
[Black "DivyaDeshmukh23"]
[Result "1-0"]
[WhiteElo "2517"]
[BlackElo "2386"]
[TimeControl "180+2"]
[EndTime "14:20:16 PDT"]
[Termination "Andrjywa won by resignation"]

1. e4 {[%clk 0:02:44.7]} 1... d5 {[%clk 0:03:00.6]} 2. exd5 {[%clk 0:02:45.4]}
2... Nf6 {[%clk 0:03:00.9]} 3. Bb5+ {[%clk 0:02:45.9]} 3... Bd7 {[%clk
0:03:01.5]} 4. Bc4 {[%clk 0:02:47.4]} 4... Bg4 {[%clk 0:03:02.1]} 5. f3 {[%clk
0:02:49.1]} 5... Bf5 {[%clk 0:03:03.4]} 6. g4 {[%clk 0:02:49.8]} 6... Bg6 {[%clk
0:03:04.3]} 7. Nc3 {[%clk 0:02:49.1]} 7... c6 {[%clk 0:03:05.2]} 8. dxc6 {[%clk
0:02:47.9]} 8... Nxc6 {[%clk 0:03:07.1]} 9. g5 {[%clk 0:02:47.3]} 9... Nd7
{[%clk 0:03:04.2]} 10. d4 {[%clk 0:02:45.6]} 10... Qb6 {[%clk 0:03:03.8]} 11.
Nd5 {[%clk 0:02:41.2]} 11... Qa5+ {[%clk 0:02:56.5]} 12. Bd2 {[%clk 0:02:41.3]}
12... Qd8 {[%clk 0:02:58.1]} 13. Bf4 {[%clk 0:02:37.9]} 13... Rc8 {[%clk
0:02:54.7]} 14. Bb3 {[%clk 0:02:35.9]} 14... e6 {[%clk 0:02:55.2]} 15. Ne3
{[%clk 0:02:31.7]} 15... Nb4 {[%clk 0:02:49.5]} 16. a3 {[%clk 0:02:29]} 16...
Nc6 {[%clk 0:02:50.2]} 17. Ne2 {[%clk 0:02:23.5]} 17... Nb6 {[%clk 0:02:45.6]}
18. h4 {[%clk 0:02:16.3]} 18... h5 {[%clk 0:02:39.3]} 19. gxh6 {[%clk
0:02:17.1]} 19... gxh6 {[%clk 0:02:41.2]} 20. h5 {[%clk 0:02:16.6]} 20... Bh7
{[%clk 0:02:42.4]} 21. Qd2 {[%clk 0:02:14.5]} 21... Bg7 {[%clk 0:02:35.5]} 22.
O-O-O {[%clk 0:02:14.2]} 22... Nd7 {[%clk 0:02:26.1]} 23. Kb1 {[%clk 0:02:12.4]}
23... Na5 {[%clk 0:02:26]} 24. Ba4 {[%clk 0:02:09]} 24... b5 {[%clk 0:02:13.6]}
25. Bxb5 {[%clk 0:02:09.6]} 25... Qb6 {[%clk 0:02:15.2]} 26. Qb4 {[%clk
0:02:00.5]} 26... Nc6 {[%clk 0:02:06.8]} 27. Bxc6 {[%clk 0:01:58]} 27... Qxc6
{[%clk 0:02:08.7]} 28. Nc3 {[%clk 0:01:46.1]} 28... Qxf3 {[%clk 0:02:08.7]} 29.
Rhf1 {[%clk 0:01:40.4]} 29... Qxh5 {[%clk 0:02:09.2]} 30. Nb5 {[%clk 0:01:40.8]}
30... Bf8 {[%clk 0:02:04.1]} 31. Qa4 {[%clk 0:01:28.8]} 31... Be7 {[%clk
0:02:01.4]} 32. Nc7+ {[%clk 0:01:27.5]} 32... Kd8 {[%clk 0:01:59]} 33. d5 {[%clk
0:01:28.8]} 33... e5 {[%clk 0:01:54.5]} 34. d6 {[%clk 0:01:25.6]} 34... Bxd6
{[%clk 0:01:22.9]} 35. Rxd6 {[%clk 0:01:07.2]} 35... Rxc7 {[%clk 0:01:24.3]} 36.
Rfd1 {[%clk 0:01:07.8]} 36... Qh3 {[%clk 0:01:25.1]} 37. Bxe5 {[%clk 0:01:02.6]}
37... Re8 {[%clk 0:01:16.7]} 38. Rxd7+ {[%clk 0:00:40.6]} 38... Rxd7 {[%clk
0:01:00.9]} 39. Bf6+ {[%clk 0:00:42]} 39... Re7 {[%clk 0:00:18.4]} 40. Nd5
{[%clk 0:00:34]} 40... Qf3 {[%clk 0:00:11.9]} 41. Bxe7+ {[%clk 0:00:34.6]} 41...
Ke8 {[%clk 0:00:13.2]} 42. Nf6+ {[%clk 0:00:33.3]} 42... Kxe7 {[%clk 0:00:14.8]}
43. Qxd7+ {[%clk 0:00:30]} 43... Kxf6 {[%clk 0:00:14.7]} 44. Qd4+ {[%clk
0:00:29.8]} 44... Kg6 {[%clk 0:00:11.5]} 45. Rg1+ {[%clk 0:00:30.8]} 45... Kh5
{[%clk 0:00:12.4]} 46. Qe5+ {[%clk 0:00:28.1]} 46... Bf5 {[%clk 0:00:13.7]} 47.
Qh2+ {[%clk 0:00:28.4]} 47... Bh3 {[%clk 0:00:14.4]} 48. Rg3 {[%clk 0:00:23.5]}
48... Qf1+ {[%clk 0:00:14.7]} 49. Ka2 {[%clk 0:00:25]} 49... Kh4 {[%clk
0:00:10.2]} 50. Rb3 {[%clk 0:00:23.8]} 50... f5 {[%clk 0:00:08.2]} 51. Qg3+
{[%clk 0:00:23.8]} 1-0

[Event "*** Titled Tuesday Blitz"]
[Site "Chess.com"]
[Date "2019.06.04"]
[Round "6"]
[White "SalgadoChess91"]
[Black "Mischuk_D"]
[Result "1/2-1/2"]
[WhiteElo "2872"]
[BlackElo "2720"]
[TimeControl "180+2"]
[EndTime "14:20:18 PDT"]
[Termination "Game drawn - insufficient material"]

1. d4 {[%clk 0:03:01.9]} 1... Nf6 {[%clk 0:02:59.8]} 2. c4 {[%clk 0:03:02.5]}
2... g6 {[%clk 0:03:01]} 3. Nc3 {[%clk 0:03:03.1]} 3... d5 {[%clk 0:03:02.1]} 4.
Nf3 {[%clk 0:03:04]} 4... Bg7 {[%clk 0:03:03.2]} 5. Qb3 {[%clk 0:03:04.8]} 5...
dxc4 {[%clk 0:03:04]} 6. Qxc4 {[%clk 0:03:06.7]} 6... O-O {[%clk 0:03:05.7]} 7.
e4 {[%clk 0:03:07.9]} 7... Ne8 {[%clk 0:03:07]} 8. Be3 {[%clk 0:03:01.1]} 8...
Nd6 {[%clk 0:03:06.3]} 9. Qb3 {[%clk 0:03:00.8]} 9... Nc6 {[%clk 0:02:52.2]} 10.
Be2 {[%clk 0:02:53.1]} 10... Bg4 {[%clk 0:02:52.5]} 11. Rd1 {[%clk 0:02:52.7]}
11... Bxf3 {[%clk 0:02:44.3]} 12. gxf3 {[%clk 0:02:52.2]} 12... Qc8 {[%clk
0:02:40.5]} 13. h4 {[%clk 0:02:51.7]} 13... e5 {[%clk 0:02:35]} 14. dxe5 {[%clk
0:02:50.8]} 14... Nxe5 {[%clk 0:02:34.9]} 15. h5 {[%clk 0:02:51.8]} 15... Re8
{[%clk 0:02:15.3]} 16. Kf1 {[%clk 0:02:35]} 16... Qe6 {[%clk 0:02:05.3]} 17.
Qxe6 {[%clk 0:02:19.3]} 17... Rxe6 {[%clk 0:02:05.9]} 18. Nd5 {[%clk 0:02:18.2]}
18... Rc8 {[%clk 0:02:06.9]} 19. b3 {[%clk 0:02:15.2]} 19... a6 {[%clk
0:01:56.5]} 20. f4 {[%clk 0:01:57.5]} 20... Nc6 {[%clk 0:01:56.7]} 21. f3 {[%clk
0:01:55.3]} 21... Ne7 {[%clk 0:01:32.2]} 22. Nxe7+ {[%clk 0:01:48.7]} 22... Rxe7
{[%clk 0:01:33.2]} 23. Kf2 {[%clk 0:01:49.9]} 23... Ree8 {[%clk 0:01:17.7]} 24.
Rhg1 {[%clk 0:01:45.8]} 24... Rcd8 {[%clk 0:01:14.1]} 25. f5 {[%clk 0:01:42.7]}
25... Nb5 {[%clk 0:01:13.4]} 26. fxg6 {[%clk 0:01:23.2]} 26... hxg6 {[%clk
0:01:12.6]} 27. hxg6 {[%clk 0:01:22.2]} 27... Rxd1 {[%clk 0:00:56.3]} 28. gxf7+
{[%clk 0:01:12.9]} 28... Kxf7 {[%clk 0:00:58.2]} 29. Rxd1 {[%clk 0:01:13.6]}
29... Nd6 {[%clk 0:00:43.3]} 30. a4 {[%clk 0:01:11.3]} 30... Ke6 {[%clk
0:00:43]} 31. Rg1 {[%clk 0:01:06.6]} 31... Bf6 {[%clk 0:00:42.1]} 32. Bd3 {[%clk
0:01:03.9]} 32... Kf7 {[%clk 0:00:40.2]} 33. Rh1 {[%clk 0:00:59]} 33... Bg7
{[%clk 0:00:30.6]} 34. Bf4 {[%clk 0:00:54.4]} 34... Bd4+ {[%clk 0:00:29.7]} 35.
Ke2 {[%clk 0:00:54.6]} 35... Bg7 {[%clk 0:00:24.5]} 36. Rc1 {[%clk 0:00:50.5]}
36... Re7 {[%clk 0:00:23.7]} 37. b4 {[%clk 0:00:47.1]} 37... Bb2 {[%clk
0:00:20.2]} 38. Rh1 {[%clk 0:00:44.7]} 38... Bg7 {[%clk 0:00:21.1]} 39. b5
{[%clk 0:00:43.6]} 39... axb5 {[%clk 0:00:23]} 40. axb5 {[%clk 0:00:44.8]} 40...
b6 {[%clk 0:00:23.6]} 41. Rh5 {[%clk 0:00:36.9]} 41... Re8 {[%clk 0:00:24]} 42.
e5 {[%clk 0:00:34.4]} 42... Kf8 {[%clk 0:00:23.4]} 43. Kf2 {[%clk 0:00:13.5]}
43... Nf7 {[%clk 0:00:23.8]} 44. Bg6 {[%clk 0:00:14.2]} 44... Bxe5 {[%clk
0:00:21.3]} 45. Rf5 {[%clk 0:00:15.3]} 45... Bd4+ {[%clk 0:00:21.6]} 46. Kg2
{[%clk 0:00:13.8]} 46... Re7 {[%clk 0:00:23.5]} 47. Bg5 {[%clk 0:00:11.8]} 47...
Rd7 {[%clk 0:00:24.3]} 48. Bh6+ {[%clk 0:00:12.3]} 48... Kg8 {[%clk 0:00:25.3]}
49. Bf4 {[%clk 0:00:12.4]} 49... Bc5 {[%clk 0:00:25.6]} 50. Bxf7+ {[%clk
0:00:11.1]} 50... Rxf7 {[%clk 0:00:25.9]} 51. Rxf7 {[%clk 0:00:12.1]} 51... Kxf7
{[%clk 0:00:27.8]} 52. Bxc7 {[%clk 0:00:12.9]} 52... Ke6 {[%clk 0:00:29.4]} 53.
f4 {[%clk 0:00:13.9]} 53... Kd5 {[%clk 0:00:30.9]} 54. Kf3 {[%clk 0:00:14.6]}
54... Kc4 {[%clk 0:00:32.4]} 55. Ke4 {[%clk 0:00:14.6]} 55... Kxb5 {[%clk
0:00:33.8]} 56. Kd5 {[%clk 0:00:15.8]} 56... Be3 {[%clk 0:00:34.9]} 57. f5
{[%clk 0:00:16.8]} 57... Bg5 {[%clk 0:00:36.6]} 58. Bxb6 {[%clk 0:00:12.1]}
58... Kxb6 {[%clk 0:00:37.8]} 59. Ke6 {[%clk 0:00:13.8]} 59... Kc7 {[%clk
0:00:39.2]} 60. f6 {[%clk 0:00:15.2]} 60... Bxf6 {[%clk 0:00:40.5]} 1/2-1/2

[Event "*** Titled Tuesday Blitz"]
[Site "Chess.com"]
[Date "2019.06.04"]
[Round "6"]
[White "mouseWLZ"]
[Black "lachesisQ"]
[Result "1-0"]
[WhiteElo "2751"]
[BlackElo "3054"]
[TimeControl "180+2"]
[EndTime "14:20:21 PDT"]
[Termination "mouseWLZ won by resignation"]

1. d4 {[%clk 0:03:01.9]} 1... Nf6 {[%clk 0:02:57.5]} 2. Bf4 {[%clk 0:03:02.8]}
2... g6 {[%clk 0:02:58.2]} 3. Nc3 {[%clk 0:03:03.1]} 3... Bg7 {[%clk 0:02:58.8]}
4. e4 {[%clk 0:03:04.3]} 4... O-O {[%clk 0:03:00.3]} 5. Qd2 {[%clk 0:03:05.2]}
5... d6 {[%clk 0:03:01.6]} 6. O-O-O {[%clk 0:03:05.7]} 6... Nc6 {[%clk
0:03:02.7]} 7. f3 {[%clk 0:03:05.2]} 7... a6 {[%clk 0:03:03.3]} 8. Bh6 {[%clk
0:03:05.7]} 8... e5 {[%clk 0:02:57.3]} 9. dxe5 {[%clk 0:03:03]} 9... dxe5 {[%clk
0:02:53.5]} 10. Bxg7 {[%clk 0:03:02.5]} 10... Qxd2+ {[%clk 0:02:51.5]} 11. Rxd2
{[%clk 0:03:02.1]} 11... Kxg7 {[%clk 0:02:53.4]} 12. Bc4 {[%clk 0:02:57.9]}
12... Na5 {[%clk 0:02:47.2]} 13. Bb3 {[%clk 0:02:49.5]} 13... Nxb3+ {[%clk
0:02:47.4]} 14. axb3 {[%clk 0:02:49.4]} 14... Be6 {[%clk 0:02:49.3]} 15. Nge2
{[%clk 0:02:49.2]} 15... Rfd8 {[%clk 0:02:50.3]} 16. Rhd1 {[%clk 0:02:49.8]}
16... Rxd2 {[%clk 0:02:51.4]} 17. Rxd2 {[%clk 0:02:51.7]} 17... Kf8 {[%clk
0:02:53.3]} 18. b4 {[%clk 0:02:44.3]} 18... Ke7 {[%clk 0:02:49.8]} 19. b3 {[%clk
0:02:45.2]} 19... Rd8 {[%clk 0:02:50.5]} 20. Rxd8 {[%clk 0:02:45.7]} 20... Kxd8
{[%clk 0:02:52.4]} 21. Kd2 {[%clk 0:02:44.8]} 21... Ke7 {[%clk 0:02:52.7]} 22.
Na4 {[%clk 0:02:45.4]} 22... b6 {[%clk 0:02:53.5]} 23. Nb2 {[%clk 0:02:45.9]}
23... Nd7 {[%clk 0:02:52.9]} 24. c4 {[%clk 0:02:45.8]} 24... f6 {[%clk
0:02:50.5]} 25. Nc3 {[%clk 0:02:40.8]} 25... c6 {[%clk 0:02:43.5]} 26. Kd3
{[%clk 0:02:26.4]} 26... b5 {[%clk 0:02:44.5]} 27. Ncd1 {[%clk 0:02:22.8]} 27...
f5 {[%clk 0:02:44.1]} 28. Ne3 {[%clk 0:02:23.2]} 28... Nf6 {[%clk 0:02:40.7]}
29. Nbd1 {[%clk 0:02:13.3]} 29... Nh5 {[%clk 0:02:41.5]} 30. g3 {[%clk
0:02:13.2]} 30... f4 {[%clk 0:02:42.8]} 31. gxf4 {[%clk 0:02:03.9]} 31... Nxf4+
{[%clk 0:02:35.6]} 32. Kd2 {[%clk 0:02:04.6]} 32... h5 {[%clk 0:02:30.7]} 33.
Nf2 {[%clk 0:02:04.7]} 33... Kf6 {[%clk 0:02:31.2]} 34. Nd3 {[%clk 0:02:05.6]}
34... Nxd3 {[%clk 0:02:30.2]} 35. Kxd3 {[%clk 0:02:07.5]} 35... Kg5 {[%clk
0:02:31.6]} 36. Ke2 {[%clk 0:02:06.6]} 36... Bh3 {[%clk 0:02:26.2]} 37. Kf2
{[%clk 0:02:01.9]} 37... Kf4 {[%clk 0:02:26.6]} 38. Nc2 {[%clk 0:01:58.6]} 38...
Be6 {[%clk 0:02:20.9]} 39. Ne1 {[%clk 0:01:37.1]} 39... Kg5 {[%clk 0:02:10.5]}
40. cxb5 {[%clk 0:01:32.4]} 40... axb5 {[%clk 0:02:08.7]} 41. Nd3 {[%clk
0:01:32.1]} 41... Kf6 {[%clk 0:02:09.5]} 42. Nc5 {[%clk 0:01:27.6]} 42... Bc8
{[%clk 0:01:56.7]} 43. h4 {[%clk 0:01:27.1]} 43... g5 {[%clk 0:01:56.3]} 44. Kg3
{[%clk 0:01:27.8]} 44... Kg6 {[%clk 0:01:54.9]} 45. Nd3 {[%clk 0:01:26.8]} 45...
gxh4+ {[%clk 0:01:46.4]} 46. Kxh4 {[%clk 0:01:27.1]} 46... Kf6 {[%clk
0:01:47.9]} 47. Kxh5 {[%clk 0:01:26.7]} 47... Bh3 {[%clk 0:01:39.3]} 48. Kh4
{[%clk 0:01:26.1]} 48... Bf1 {[%clk 0:01:39.6]} 49. Nc5 {[%clk 0:01:26.4]} 49...
Be2 {[%clk 0:01:40.8]} 50. Kg3 {[%clk 0:01:27.4]} 50... Bd1 {[%clk 0:01:41.8]}
51. f4 {[%clk 0:01:27.1]} 51... exf4+ {[%clk 0:01:38.2]} 52. Kxf4 {[%clk
0:01:28.1]} 52... Bc2 {[%clk 0:01:39.9]} 53. e5+ {[%clk 0:01:23.3]} 53... Ke7
{[%clk 0:01:41]} 54. Ke3 {[%clk 0:01:22.8]} 54... Bd1 {[%clk 0:01:39.9]} 55. Kd4
{[%clk 0:01:23.5]} 55... Bc2 {[%clk 0:01:41]} 56. Kc3 {[%clk 0:01:05.9]} 56...
Bd1 {[%clk 0:01:41.9]} 57. Kd2 {[%clk 0:01:04.9]} 57... Bf3 {[%clk 0:01:42.9]}
58. Kd3 {[%clk 0:01:05.5]} 58... Bd1 {[%clk 0:01:43]} 59. Kc3 {[%clk 0:01:04.2]}
59... Bf3 {[%clk 0:01:42.6]} 60. Na6 {[%clk 0:01:00.1]} 60... Ke6 {[%clk
0:01:36.5]} 61. Kd4 {[%clk 0:01:00.6]} 61... Bd1 {[%clk 0:01:37.9]} 62. Nb8
{[%clk 0:00:57.9]} 62... Bf3 {[%clk 0:01:32.5]} 63. Kc5 {[%clk 0:00:56.9]} 63...
Kxe5 {[%clk 0:01:29.7]} 64. Nxc6+ {[%clk 0:00:57.5]} 64... Ke4 {[%clk
0:01:15.5]} 65. Kxb5 {[%clk 0:00:51.3]} 65... Kd5 {[%clk 0:01:14.8]} 66. Kb6
{[%clk 0:00:52.2]} 66... Kd6 {[%clk 0:01:12]} 67. b5 {[%clk 0:00:52.4]} 67...
Bd5 {[%clk 0:01:12.8]} 68. b4 {[%clk 0:00:52.4]} 68... Kd7 {[%clk 0:01:12.8]}
69. Ka7 {[%clk 0:00:45.1]} 69... Bg2 {[%clk 0:00:55.5]} 70. Na5 {[%clk
0:00:45.3]} 1-0

[Event "*** Titled Tuesday Blitz"]
[Site "Chess.com"]
[Date "2019.06.04"]
[Round "6"]
[White "Alexander_Moskalenko"]
[Black "spicycaterpillar"]
[Result "0-1"]
[WhiteElo "2890"]
[BlackElo "2846"]
[TimeControl "180+2"]
[EndTime "14:20:23 PDT"]
[Termination "spicycaterpillar won by checkmate"]

1. c3 {[%clk 0:03:01.9]} 1... e5 {[%clk 0:02:59.9]} 2. d4 {[%clk 0:03:03.3]}
2... e4 {[%clk 0:02:59.9]} 3. Bf4 {[%clk 0:03:01]} 3... Ne7 {[%clk 0:02:55.1]}
4. e3 {[%clk 0:03:01]} 4... d5 {[%clk 0:02:36.8]} 5. Ne2 {[%clk 0:03:01.6]} 5...
Ng6 {[%clk 0:02:30]} 6. Bg3 {[%clk 0:03:01.9]} 6... Bd6 {[%clk 0:02:30.6]} 7.
Nd2 {[%clk 0:02:59.7]} 7... O-O {[%clk 0:02:28.2]} 8. c4 {[%clk 0:03:00.5]} 8...
c6 {[%clk 0:02:26.5]} 9. Nc3 {[%clk 0:03:01.5]} 9... Be6 {[%clk 0:02:07.1]} 10.
Qb3 {[%clk 0:03:02.3]} 10... b6 {[%clk 0:01:59.7]} 11. Be2 {[%clk 0:02:59.1]}
11... f5 {[%clk 0:01:45.3]} 12. Bxd6 {[%clk 0:02:56.8]} 12... Qxd6 {[%clk
0:01:46.1]} 13. g3 {[%clk 0:02:58.7]} 13... Nd7 {[%clk 0:01:39.4]} 14. Rc1
{[%clk 0:02:52.6]} 14... Nf6 {[%clk 0:01:11.2]} 15. cxd5 {[%clk 0:02:50.1]}
15... cxd5 {[%clk 0:01:07.9]} 16. Nb5 {[%clk 0:02:50.3]} 16... Qd8 {[%clk
0:00:53.3]} 17. O-O {[%clk 0:01:49.7]} 17... Rf7 {[%clk 0:00:53.2]} 18. Qa3
{[%clk 0:01:38.2]} 18... h5 {[%clk 0:00:44.1]} 19. Qd6 {[%clk 0:01:27.9]} 19...
Qxd6 {[%clk 0:00:31.8]} 20. Nxd6 {[%clk 0:01:29.8]} 20... Rd7 {[%clk 0:00:26.7]}
21. Nb5 {[%clk 0:01:31]} 21... Rad8 {[%clk 0:00:14.9]} 22. Nc7 {[%clk
0:01:30.6]} 22... Bf7 {[%clk 0:00:12.6]} 23. Bb5 {[%clk 0:01:31.9]} 23... Re7
{[%clk 0:00:10.2]} 24. h4 {[%clk 0:01:31.1]} 24... f4 {[%clk 0:00:10.3]} 25.
exf4 {[%clk 0:01:25.4]} 25... e3 {[%clk 0:00:12.2]} 26. fxe3 {[%clk 0:01:26.5]}
26... Rxe3 {[%clk 0:00:11.7]} 27. Rf3 {[%clk 0:01:27.9]} 27... Rxf3 {[%clk
0:00:03.9]} 28. Nxf3 {[%clk 0:01:28.6]} 28... Ne4 {[%clk 0:00:05.8]} 29. Kg2
{[%clk 0:01:24.1]} 29... Ne7 {[%clk 0:00:07]} 30. Ne5 {[%clk 0:00:19.9]} 30...
Nf5 {[%clk 0:00:07.9]} 31. Bd3 {[%clk 0:00:17]} 31... Nfxg3 {[%clk 0:00:07]} 32.
Nb5 {[%clk 0:00:18.2]} 32... Nf5 {[%clk 0:00:07.7]} 33. Rc7 {[%clk 0:00:19.2]}
33... Be6 {[%clk 0:00:07.3]} 34. Nxa7 {[%clk 0:00:17.9]} 34... Nxh4+ {[%clk
0:00:07.9]} 35. Kh2 {[%clk 0:00:18.4]} 35... Nf5 {[%clk 0:00:08.3]} 36. Nac6
{[%clk 0:00:19.2]} 36... Ra8 {[%clk 0:00:09.8]} 37. a3 {[%clk 0:00:19.9]} 37...
Kh7 {[%clk 0:00:07.4]} 38. Ne7 {[%clk 0:00:18.6]} 38... Nxe7 {[%clk 0:00:07.9]}
39. Rxe7 {[%clk 0:00:20.5]} 39... Bf5 {[%clk 0:00:09.3]} 40. Rf7 {[%clk
0:00:20.5]} 40... Be6 {[%clk 0:00:10.4]} 41. Rb7 {[%clk 0:00:20.4]} 41... Bf5
{[%clk 0:00:03.7]} 42. Rxb6 {[%clk 0:00:20.3]} 42... Rf8 {[%clk 0:00:03.4]} 43.
Rc6 {[%clk 0:00:20.6]} 43... Nd2 {[%clk 0:00:04.3]} 44. Be2 {[%clk 0:00:10.5]}
44... h4 {[%clk 0:00:04.4]} 45. b4 {[%clk 0:00:11.6]} 45... Nb3 {[%clk
0:00:04.7]} 46. Rd6 {[%clk 0:00:05]} 46... Nxd4 {[%clk 0:00:05.2]} 47. Bd1
{[%clk 0:00:06.6]} 47... Be4 {[%clk 0:00:06]} 48. Rd7 {[%clk 0:00:06.5]} 48...
Rxf4 {[%clk 0:00:06.9]} 49. Bg4 {[%clk 0:00:08.1]} 49... Kh6 {[%clk 0:00:06.1]}
50. Nf7+ {[%clk 0:00:08.2]} 50... Kg6 {[%clk 0:00:06.1]} 51. Ne5+ {[%clk
0:00:10.1]} 51... Kf6 {[%clk 0:00:06.5]} 52. Nf7 {[%clk 0:00:07.5]} 52... Rxg4
{[%clk 0:00:07.3]} 53. Nd6 {[%clk 0:00:08.9]} 53... Nf3+ {[%clk 0:00:08.3]} 54.
Kh3 {[%clk 0:00:09.8]} 54... Rg3# {[%clk 0:00:09.6]} 0-1